[Event "*** Titled Tuesday Blitz"]
[Site "Chess.com"]
[Date "2020.05.12"]
[Round "1"]
[White "Bossche-CM"]
[Black "Radzio1987"]
[Result "0-1"]
[WhiteElo "2444"]
[BlackElo "2878"]
[TimeControl "180+1"]
[EndTime "10:07:00 PDT"]
[Termination "Radzio1987 won by resignation"]

1. e4 {[%clk 0:03:00.7]} 1... c6 {[%clk 0:03:00.1]} 2. c4 {[%clk 0:03:00.3]}
2... d5 {[%clk 0:03:01]} 3. cxd5 {[%clk 0:03:00.7]} 3... cxd5 {[%clk 0:03:01.9]}
4. exd5 {[%clk 0:03:01]} 4... Nf6 {[%clk 0:03:02.1]} 5. Nc3 {[%clk 0:03:01.2]}
5... Nxd5 {[%clk 0:03:02.1]} 6. Nf3 {[%clk 0:03:00.3]} 6... Nxc3 {[%clk
0:03:00.4]} 7. bxc3 {[%clk 0:02:57]} 7... g6 {[%clk 0:03:00.6]} 8. d4 {[%clk
0:02:57]} 8... Bg7 {[%clk 0:03:00.3]} 9. Be2 {[%clk 0:02:53.9]} 9... Nc6 {[%clk
0:02:59.7]} 10. O-O {[%clk 0:02:53.9]} 10... O-O {[%clk 0:02:59.4]} 11. Bf4
{[%clk 0:02:51.5]} 11... Bf5 {[%clk 0:02:49]} 12. Qa4 {[%clk 0:02:25.2]} 12...
Rc8 {[%clk 0:02:43.4]} 13. Rac1 {[%clk 0:02:23.9]} 13... Be4 {[%clk 0:02:30.4]}
14. Rfd1 {[%clk 0:02:22.3]} 14... Qa5 {[%clk 0:02:29.1]} 15. Qxa5 {[%clk
0:02:19.6]} 15... Nxa5 {[%clk 0:02:28.3]} 16. Ne5 {[%clk 0:02:20.1]} 16... Rfd8
{[%clk 0:02:22.6]} 17. Bf3 {[%clk 0:02:16.2]} 17... Bxe5 {[%clk 0:02:17.9]} 18.
dxe5 {[%clk 0:01:57.5]} 18... Bxf3 {[%clk 0:02:16.7]} 19. gxf3 {[%clk
0:01:58.4]} 19... Nc4 {[%clk 0:02:09]} 20. Rd4 {[%clk 0:01:55.2]} 20... e6
{[%clk 0:01:48.6]} 21. Bg5 {[%clk 0:01:42.5]} 21... Rxd4 {[%clk 0:01:45.4]} 22.
cxd4 {[%clk 0:01:42.6]} 22... Kf8 {[%clk 0:01:38.7]} 23. Kf1 {[%clk 0:01:38.3]}
23... Ke8 {[%clk 0:01:38.2]} 24. Ke2 {[%clk 0:01:38.3]} 24... Kd7 {[%clk
0:01:37.9]} 25. Rc2 {[%clk 0:01:12.8]} 25... Nb6 {[%clk 0:01:25.7]} 26. Rb2
{[%clk 0:01:02.2]} 26... Rc7 {[%clk 0:01:25]} 27. Bd2 {[%clk 0:00:55.8]} 27...
Nd5 {[%clk 0:01:23.2]} 28. Kd3 {[%clk 0:00:54.3]} 28... b6 {[%clk 0:01:21.2]}
29. Rb1 {[%clk 0:00:51.7]} 29... h5 {[%clk 0:01:20.4]} 30. h4 {[%clk 0:00:49.6]}
30... Ne7 {[%clk 0:01:17.4]} 31. Rb2 {[%clk 0:00:47.4]} 31... Nf5 {[%clk
0:01:11.9]} 32. Bg5 {[%clk 0:00:47.9]} 32... Kc6 {[%clk 0:01:11.6]} 33. Rc2+
{[%clk 0:00:46.1]} 33... Kb7 {[%clk 0:01:11.5]} 34. d5 {[%clk 0:00:19.7]} 34...
Rxc2 {[%clk 0:01:02.2]} 35. dxe6 {[%clk 0:00:18.9]} 35... Rc7 {[%clk 0:00:54.2]}
36. exf7 {[%clk 0:00:16.9]} 36... Rxf7 {[%clk 0:00:54]} 37. e6 {[%clk
0:00:15.6]} 37... Rf8 {[%clk 0:00:51.8]} 38. Ke4 {[%clk 0:00:16.5]} 38... Kc6
{[%clk 0:00:46.9]} 39. Ke5 {[%clk 0:00:16.6]} 39... Ng7 {[%clk 0:00:41.4]} 40.
e7 {[%clk 0:00:15.8]} 40... Rf5+ {[%clk 0:00:41.1]} 41. Ke4 {[%clk 0:00:15.7]}
41... Kd7 {[%clk 0:00:41.2]} 42. Bh6 {[%clk 0:00:14.1]} 42... Ne6 {[%clk
0:00:39.3]} 0-1

[Event "*** Titled Tuesday Blitz"]
[Site "Chess.com"]
[Date "2020.05.12"]
[Round "1"]
[White "fridaywins"]
[Black "Gentlejimmy7"]
[Result "0-1"]
[WhiteElo "2214"]
[BlackElo "2553"]
[TimeControl "180+1"]
[EndTime "10:07:01 PDT"]
[Termination "Gentlejimmy7 won by resignation"]

1. e4 {[%clk 0:03:00.9]} 1... c5 {[%clk 0:02:48.9]} 2. Nf3 {[%clk 0:02:59.5]}
2... Nc6 {[%clk 0:02:49.2]} 3. Bb5 {[%clk 0:02:58.8]} 3... g6 {[%clk 0:02:48.7]}
4. Bxc6 {[%clk 0:02:58.7]} 4... dxc6 {[%clk 0:02:49.6]} 5. h3 {[%clk 0:02:56.3]}
5... Bg7 {[%clk 0:02:37.8]} 6. Nc3 {[%clk 0:02:54.6]} 6... e5 {[%clk 0:02:37.7]}
7. d3 {[%clk 0:02:52.3]} 7... Qe7 {[%clk 0:02:32.3]} 8. Be3 {[%clk 0:02:52]}
8... Nf6 {[%clk 0:02:31.5]} 9. Qd2 {[%clk 0:02:51.6]} 9... Nd7 {[%clk
0:02:30.9]} 10. Bh6 {[%clk 0:02:50.4]} 10... Qf8 {[%clk 0:02:21.7]} 11. Bxg7
{[%clk 0:02:50.3]} 11... Qxg7 {[%clk 0:02:22.6]} 12. Nd1 {[%clk 0:02:50.5]}
12... Nf8 {[%clk 0:02:22.7]} 13. Qc3 {[%clk 0:02:49.8]} 13... f6 {[%clk
0:02:21.6]} 14. Ne3 {[%clk 0:02:49.7]} 14... Ne6 {[%clk 0:02:21.1]} 15. b4
{[%clk 0:02:30.9]} 15... cxb4 {[%clk 0:02:12.2]} 16. Qxb4 {[%clk 0:02:31]} 16...
Qe7 {[%clk 0:02:12.9]} 17. a3 {[%clk 0:02:15.7]} 17... a5 {[%clk 0:02:04.6]} 18.
Qxe7+ {[%clk 0:02:11.9]} 18... Kxe7 {[%clk 0:02:05.5]} 19. Nc4 {[%clk
0:02:04.5]} 19... b5 {[%clk 0:02:03.1]} 20. Nb6 {[%clk 0:01:56.8]} 20... Ra6
{[%clk 0:02:02.4]} 21. Nxc8+ {[%clk 0:01:56.4]} 21... Rxc8 {[%clk 0:02:03.3]}
22. a4 {[%clk 0:01:44.4]} 22... b4 {[%clk 0:02:01.4]} 23. O-O-O {[%clk
0:01:23.7]} 23... c5 {[%clk 0:01:59.9]} 24. Nd2 {[%clk 0:01:23.1]} 24... Nd4
{[%clk 0:01:58.2]} 25. Nc4 {[%clk 0:01:20.7]} 25... Ne2+ {[%clk 0:01:57.5]} 26.
Kb2 {[%clk 0:01:20.1]} 26... Nc3 {[%clk 0:01:58.4]} 27. Ra1 {[%clk 0:01:17.1]}
27... Ke6 {[%clk 0:01:56.8]} 28. Kb3 {[%clk 0:01:17.3]} 28... Ne2 {[%clk
0:01:55.3]} 29. Rhf1 {[%clk 0:01:14]} 29... Rb8 {[%clk 0:01:52.8]} 30. Rae1
{[%clk 0:01:12.2]} 30... Nd4+ {[%clk 0:01:51.9]} 31. Kb2 {[%clk 0:01:12.2]}
31... g5 {[%clk 0:01:41.6]} 32. g3 {[%clk 0:01:11.6]} 32... h5 {[%clk
0:01:36.2]} 33. f4 {[%clk 0:01:11.4]} 33... g4 {[%clk 0:01:34.4]} 34. fxe5
{[%clk 0:01:09.6]} 34... Nf3 {[%clk 0:01:31.4]} 35. Re2 {[%clk 0:00:56.6]} 35...
fxe5 {[%clk 0:01:30.9]} 36. hxg4 {[%clk 0:00:57.5]} 36... hxg4 {[%clk
0:01:31.4]} 37. Ne3 {[%clk 0:00:57.7]} 37... b3 {[%clk 0:01:26.2]} 38. c3 {[%clk
0:00:55.9]} 38... Rd6 {[%clk 0:01:22.5]} 39. Nd5 {[%clk 0:00:48.9]} 39... Rh8
{[%clk 0:01:16.7]} 40. c4 {[%clk 0:00:48.5]} 40... Rd7 {[%clk 0:01:07]} 41. Kxb3
{[%clk 0:00:47]} 41... Nd4+ {[%clk 0:01:06.7]} 42. Kc3 {[%clk 0:00:46.2]} 42...
Nxe2+ {[%clk 0:01:06.8]} 43. Kd2 {[%clk 0:00:47.1]} 43... Rf7 {[%clk 0:00:47.5]}
44. Kxe2 {[%clk 0:00:37.4]} 44... Rxf1 {[%clk 0:00:46.3]} 45. Kxf1 {[%clk
0:00:38.3]} 45... Rh2 {[%clk 0:00:45.2]} 46. Ne3 {[%clk 0:00:37]} 46... Ra2
{[%clk 0:00:44.7]} 47. Nxg4 {[%clk 0:00:36.4]} 47... Rxa4 {[%clk 0:00:44.9]} 48.
Ke2 {[%clk 0:00:36.5]} 48... Rb4 {[%clk 0:00:45]} 49. Ne3 {[%clk 0:00:29.7]}
49... a4 {[%clk 0:00:44.6]} 50. Nd5 {[%clk 0:00:30.6]} 50... a3 {[%clk
0:00:43.8]} 0-1

[Event "*** Titled Tuesday Blitz"]
[Site "Chess.com"]
[Date "2020.05.12"]
[Round "1"]
[White "Juanovic"]
[Black "Shukh_Nikolay"]
[Result "0-1"]
[WhiteElo "2166"]
[BlackElo "2520"]
[TimeControl "180+1"]
[EndTime "10:07:01 PDT"]
[Termination "Shukh_Nikolay won by resignation"]

1. e4 {[%clk 0:03:00.9]} 1... e5 {[%clk 0:02:58.5]} 2. Nf3 {[%clk 0:03:00.8]}
2... Nc6 {[%clk 0:02:58.1]} 3. Bb5 {[%clk 0:03:00.5]} 3... a6 {[%clk 0:02:57.3]}
4. Bxc6 {[%clk 0:03:00.2]} 4... dxc6 {[%clk 0:02:57.5]} 5. O-O {[%clk
0:03:00.4]} 5... Bd6 {[%clk 0:02:57.8]} 6. d4 {[%clk 0:03:00.3]} 6... exd4
{[%clk 0:02:58.1]} 7. Nxd4 {[%clk 0:03:01.2]} 7... Ne7 {[%clk 0:02:50.2]} 8. c4
{[%clk 0:02:57.1]} 8... c5 {[%clk 0:02:41.3]} 9. Nf3 {[%clk 0:02:52.8]} 9... f6
{[%clk 0:02:39.4]} 10. h3 {[%clk 0:02:52.4]} 10... O-O {[%clk 0:02:38.4]} 11.
Nc3 {[%clk 0:02:52.4]} 11... Be6 {[%clk 0:02:37.3]} 12. b3 {[%clk 0:02:51.1]}
12... Nc6 {[%clk 0:02:35.7]} 13. Bb2 {[%clk 0:02:49]} 13... Nd4 {[%clk
0:02:33.2]} 14. Nd5 {[%clk 0:02:45.8]} 14... Nxf3+ {[%clk 0:02:30.6]} 15. Qxf3
{[%clk 0:02:45]} 15... c6 {[%clk 0:02:29.3]} 16. Nf4 {[%clk 0:02:44.1]} 16...
Bf7 {[%clk 0:02:29]} 17. Rad1 {[%clk 0:02:43.6]} 17... Qe7 {[%clk 0:02:28.8]}
18. Rfe1 {[%clk 0:02:43]} 18... Rad8 {[%clk 0:02:27.2]} 19. Nd3 {[%clk
0:02:08.1]} 19... Qc7 {[%clk 0:02:09.5]} 20. Qe3 {[%clk 0:01:54.5]} 20... b5
{[%clk 0:02:03.5]} 21. e5 {[%clk 0:01:50.6]} 21... fxe5 {[%clk 0:02:02.5]} 22.
Bxe5 {[%clk 0:01:50.8]} 22... bxc4 {[%clk 0:01:57.9]} 23. Nxc5 {[%clk
0:01:50.2]} 23... Bxe5 {[%clk 0:01:50.4]} 24. Rxd8 {[%clk 0:01:47.1]} 24... Bh2+
{[%clk 0:01:49.6]} 25. Kh1 {[%clk 0:01:46.8]} 25... Rxd8 {[%clk 0:01:49.4]} 26.
g3 {[%clk 0:01:44.2]} 26... cxb3 {[%clk 0:01:44.7]} 27. axb3 {[%clk 0:01:42.6]}
27... Re8 {[%clk 0:01:26.5]} 28. Qc3 {[%clk 0:01:13.5]} 28... Bxg3 {[%clk
0:01:11.2]} 29. fxg3 {[%clk 0:01:12.9]} 29... Bd5+ {[%clk 0:01:02.3]} 30. Kh2
{[%clk 0:01:10.7]} 30... Rf8 {[%clk 0:00:59.8]} 31. Re2 {[%clk 0:01:07.4]} 31...
Rf1 {[%clk 0:00:46]} 32. Ne4 {[%clk 0:00:56.4]} 32... Qf7 {[%clk 0:00:41]} 33.
Qe3 {[%clk 0:00:49.2]} 33... h6 {[%clk 0:00:37.6]} 34. Kg2 {[%clk 0:00:38.1]}
34... Rf5 {[%clk 0:00:27.9]} 35. Kh2 {[%clk 0:00:36]} 35... Re5 {[%clk
0:00:26.7]} 36. Qd3 {[%clk 0:00:28.6]} 36... Rxe4 {[%clk 0:00:22.8]} 37. Rxe4
{[%clk 0:00:27.7]} 37... Qf2+ {[%clk 0:00:22.8]} 38. Kh1 {[%clk 0:00:26.6]}
38... Qe1+ {[%clk 0:00:22]} 39. Kh2 {[%clk 0:00:25.3]} 39... Bxe4 {[%clk
0:00:20.6]} 0-1

[Event "*** Titled Tuesday Blitz"]
[Site "Chess.com"]
[Date "2020.05.12"]
[Round "1"]
[White "Ceejay271"]
[Black "WhiteKnight2612"]
[Result "0-1"]
[WhiteElo "2353"]
[BlackElo "2682"]
[TimeControl "180+1"]
[EndTime "10:07:02 PDT"]
[Termination "WhiteKnight2612 won on time"]

1. d4 {[%clk 0:02:59.6]} 1... d5 {[%clk 0:02:55.9]} 2. c4 {[%clk 0:02:58]} 2...
dxc4 {[%clk 0:02:42.5]} 3. Nf3 {[%clk 0:02:56.5]} 3... Nf6 {[%clk 0:02:39.6]} 4.
e3 {[%clk 0:02:51.4]} 4... e6 {[%clk 0:02:38.5]} 5. Bxc4 {[%clk 0:02:48.8]} 5...
b6 {[%clk 0:02:37.4]} 6. O-O {[%clk 0:02:44.4]} 6... Be7 {[%clk 0:02:34.2]} 7.
Qe2 {[%clk 0:02:37.2]} 7... Bb7 {[%clk 0:02:33.8]} 8. Nc3 {[%clk 0:02:35.5]}
8... O-O {[%clk 0:02:32.1]} 9. Rd1 {[%clk 0:02:34.4]} 9... Nbd7 {[%clk
0:02:27.3]} 10. b3 {[%clk 0:02:25]} 10... a6 {[%clk 0:02:24.7]} 11. Bb2 {[%clk
0:02:23.7]} 11... b5 {[%clk 0:02:23.9]} 12. Bd3 {[%clk 0:02:22.3]} 12... Nb6
{[%clk 0:02:24.1]} 13. Rac1 {[%clk 0:02:16.9]} 13... h6 {[%clk 0:02:18.5]} 14.
e4 {[%clk 0:02:02.6]} 14... Rc8 {[%clk 0:02:15.8]} 15. a3 {[%clk 0:01:49.3]}
15... Qe8 {[%clk 0:01:55]} 16. b4 {[%clk 0:01:42.6]} 16... Rd8 {[%clk
0:01:50.5]} 17. h3 {[%clk 0:01:39.1]} 17... Nfd7 {[%clk 0:01:39.8]} 18. Nd2
{[%clk 0:01:29.8]} 18... Ra8 {[%clk 0:01:37.8]} 19. Nb3 {[%clk 0:01:28]} 19...
Rc8 {[%clk 0:01:28.8]} 20. Nc5 {[%clk 0:01:22.5]} 20... Nxc5 {[%clk 0:01:25.7]}
21. dxc5 {[%clk 0:01:21.9]} 21... Nd7 {[%clk 0:01:24.6]} 22. a4 {[%clk
0:01:10.7]} 22... c6 {[%clk 0:01:21.2]} 23. e5 {[%clk 0:01:07.2]} 23... a5
{[%clk 0:01:05.6]} 24. bxa5 {[%clk 0:00:56.3]} 24... Nxc5 {[%clk 0:01:00.2]} 25.
axb5 {[%clk 0:00:50.9]} 25... Nxd3 {[%clk 0:00:53.4]} 26. Qxd3 {[%clk
0:00:51.8]} 26... cxb5 {[%clk 0:00:53.3]} 27. Qxb5 {[%clk 0:00:21.4]} 27... Bc6
{[%clk 0:00:52.8]} 28. Qe2 {[%clk 0:00:16.5]} 28... Bb4 {[%clk 0:00:44.3]} 29.
a6 {[%clk 0:00:15]} 29... Qe7 {[%clk 0:00:43.3]} 30. Ne4 {[%clk 0:00:13.8]}
30... Bd5 {[%clk 0:00:33.1]} 31. Nd6 {[%clk 0:00:10.8]} 31... Ra8 {[%clk
0:00:30.9]} 32. Rxd5 {[%clk 0:00:08.4]} 32... exd5 {[%clk 0:00:29.5]} 33. Qg4
{[%clk 0:00:02.2]} 33... Qg5 {[%clk 0:00:24.2]} 0-1

[Event "*** Titled Tuesday Blitz"]
[Site "Chess.com"]
[Date "2020.05.12"]
[Round "1"]
[White "ViktoriyaTarasova"]
[Black "GianmarcoVaR"]
[Result "0-1"]
[WhiteElo "2200"]
[BlackElo "2539"]
[TimeControl "180+1"]
[EndTime "10:07:02 PDT"]
[Termination "GianmarcoVaR won by checkmate"]

1. d4 {[%clk 0:03:00.9]} 1... Nf6 {[%clk 0:02:51.9]} 2. c4 {[%clk 0:03:00.5]}
2... e6 {[%clk 0:02:51.8]} 3. Nc3 {[%clk 0:03:00.7]} 3... Bb4 {[%clk 0:02:52.3]}
4. Qc2 {[%clk 0:03:00.6]} 4... d6 {[%clk 0:02:50.4]} 5. Nf3 {[%clk 0:02:52.7]}
5... c5 {[%clk 0:02:33.5]} 6. dxc5 {[%clk 0:02:50]} 6... Bxc5 {[%clk 0:02:13]}
7. Bg5 {[%clk 0:02:38.1]} 7... Nbd7 {[%clk 0:01:51.8]} 8. e3 {[%clk 0:02:37.9]}
8... h6 {[%clk 0:01:48.3]} 9. Bh4 {[%clk 0:02:37.3]} 9... Qa5 {[%clk 0:01:43.8]}
10. Bd3 {[%clk 0:02:29.5]} 10... Bb4 {[%clk 0:01:42.6]} 11. O-O {[%clk 0:02:17]}
11... Bxc3 {[%clk 0:01:42.5]} 12. bxc3 {[%clk 0:02:17.6]} 12... O-O {[%clk
0:01:39.7]} 13. Nd4 {[%clk 0:02:17]} 13... Qc5 {[%clk 0:01:26.3]} 14. f4 {[%clk
0:02:02.9]} 14... b6 {[%clk 0:01:26.2]} 15. Nb3 {[%clk 0:01:58]} 15... Qxe3+
{[%clk 0:01:13.1]} 16. Kh1 {[%clk 0:01:53.6]} 16... Bb7 {[%clk 0:01:13]} 17.
Rae1 {[%clk 0:01:45.6]} 17... Qh3 {[%clk 0:01:13.3]} 18. Bg3 {[%clk 0:01:19.2]}
18... Rac8 {[%clk 0:01:01.6]} 19. Kg1 {[%clk 0:01:17.2]} 19... Qh5 {[%clk
0:01:00.3]} 20. f5 {[%clk 0:01:09.1]} 20... e5 {[%clk 0:00:57.3]} 21. h4 {[%clk
0:00:55.7]} 21... Qg4 {[%clk 0:00:56.5]} 22. Re3 {[%clk 0:00:54.6]} 22... Qh5
{[%clk 0:00:22.3]} 23. Be2 {[%clk 0:00:44.7]} 23... Ng4 {[%clk 0:00:22.5]} 24.
Rd3 {[%clk 0:00:44.3]} 24... Be4 {[%clk 0:00:15.8]} 25. Qd1 {[%clk 0:00:42.5]}
25... Ndf6 {[%clk 0:00:11]} 26. Rxd6 {[%clk 0:00:40.8]} 26... Bxf5 {[%clk
0:00:11.5]} 27. Bxe5 {[%clk 0:00:31.4]} 27... Qxh4 {[%clk 0:00:08.6]} 28. Rxf5
{[%clk 0:00:26.8]} 28... Ne3 {[%clk 0:00:08.9]} 29. Bxf6 {[%clk 0:00:22.8]}
29... Qg3 {[%clk 0:00:04]} 30. Qd4 {[%clk 0:00:16.8]} 30... Qxg2# {[%clk
0:00:03.9]} 0-1

[Event "*** Titled Tuesday Blitz"]
[Site "Chess.com"]
[Date "2020.05.12"]
[Round "1"]
[White "AustrianFalcon"]
[Black "ToivoK3"]
[Result "1/2-1/2"]
[WhiteElo "2454"]
[BlackElo "2887"]
[TimeControl "180+1"]
[EndTime "10:07:03 PDT"]
[Termination "Game drawn by repetition"]

1. e4 {[%clk 0:03:00.8]} 1... c5 {[%clk 0:02:58.2]} 2. Nf3 {[%clk 0:02:58.3]}
2... g6 {[%clk 0:02:58.3]} 3. c4 {[%clk 0:02:57.7]} 3... Bg7 {[%clk 0:02:58.1]}
4. d4 {[%clk 0:02:58.2]} 4... cxd4 {[%clk 0:02:59]} 5. Nxd4 {[%clk 0:02:58.7]}
5... Qb6 {[%clk 0:02:59.9]} 6. Nb5 {[%clk 0:02:45.2]} 6... a6 {[%clk 0:02:56.1]}
7. Be3 {[%clk 0:02:42.5]} 7... Qd8 {[%clk 0:02:56.8]} 8. Nd4 {[%clk 0:02:40.9]}
8... Nc6 {[%clk 0:02:56.4]} 9. Nc3 {[%clk 0:02:40.1]} 9... d6 {[%clk 0:02:56.6]}
10. f3 {[%clk 0:02:36.4]} 10... Nf6 {[%clk 0:02:57.2]} 11. Qd2 {[%clk
0:02:33.7]} 11... O-O {[%clk 0:02:57.3]} 12. Be2 {[%clk 0:02:30.6]} 12... Nxd4
{[%clk 0:02:53.5]} 13. Bxd4 {[%clk 0:02:30]} 13... Be6 {[%clk 0:02:54.4]} 14.
Rc1 {[%clk 0:02:21.3]} 14... Qa5 {[%clk 0:02:40.2]} 15. b3 {[%clk 0:02:04.4]}
15... Rfc8 {[%clk 0:02:38.9]} 16. O-O {[%clk 0:01:42.9]} 16... b5 {[%clk
0:02:33.8]} 17. cxb5 {[%clk 0:01:13.4]} 17... axb5 {[%clk 0:02:34.5]} 18. Rfd1
{[%clk 0:01:09.8]} 18... b4 {[%clk 0:02:02.2]} 19. Na4 {[%clk 0:01:06.6]} 19...
Nd7 {[%clk 0:02:02.7]} 20. Bxg7 {[%clk 0:01:03.5]} 20... Kxg7 {[%clk 0:02:03.6]}
21. Rxc8 {[%clk 0:00:56.3]} 21... Rxc8 {[%clk 0:02:03.3]} 22. Rc1 {[%clk
0:00:52.3]} 22... Nc5 {[%clk 0:01:58.7]} 23. Nxc5 {[%clk 0:00:48.3]} 23... Rxc5
{[%clk 0:01:57.9]} 24. Qd4+ {[%clk 0:00:46.5]} 24... f6 {[%clk 0:01:56.6]} 25.
Rxc5 {[%clk 0:00:46.5]} 25... dxc5 {[%clk 0:01:52.7]} 26. Qd2 {[%clk 0:00:44.9]}
26... Qb6 {[%clk 0:01:51.3]} 27. Bc4 {[%clk 0:00:42.7]} 27... Bxc4 {[%clk
0:01:48.8]} 28. bxc4 {[%clk 0:00:43.6]} 28... Qe6 {[%clk 0:01:49.4]} 29. Qd5
{[%clk 0:00:39.3]} 29... Qxd5 {[%clk 0:01:48.2]} 30. exd5 {[%clk 0:00:40.2]}
30... Kf7 {[%clk 0:01:46.4]} 31. Kf2 {[%clk 0:00:39.9]} 31... Ke8 {[%clk
0:01:47]} 32. Ke3 {[%clk 0:00:39.2]} 32... Kd7 {[%clk 0:01:47.9]} 33. f4 {[%clk
0:00:29.7]} 33... Kc7 {[%clk 0:01:45.4]} 34. Kd3 {[%clk 0:00:22.6]} 34... Kd6
{[%clk 0:01:33.5]} 35. g4 {[%clk 0:00:19.1]} 35... e6 {[%clk 0:01:33]} 36. dxe6
{[%clk 0:00:18.3]} 36... Kxe6 {[%clk 0:01:33.5]} 37. Ke4 {[%clk 0:00:17.9]}
37... f5+ {[%clk 0:01:33.5]} 38. gxf5+ {[%clk 0:00:18.1]} 38... gxf5+ {[%clk
0:01:34.4]} 39. Ke3 {[%clk 0:00:17.3]} 39... Ke7 {[%clk 0:01:34]} 40. h4 {[%clk
0:00:16]} 40... Kd7 {[%clk 0:01:31.4]} 41. Kd3 {[%clk 0:00:16]} 41... Kc7 {[%clk
0:01:31.8]} 42. Kc2 {[%clk 0:00:15.6]} 42... Kb6 {[%clk 0:01:28.8]} 43. Kb3
{[%clk 0:00:14.5]} 43... Ka5 {[%clk 0:01:29]} 44. a3 {[%clk 0:00:12.6]} 44... h5
{[%clk 0:01:20.7]} 45. axb4+ {[%clk 0:00:10.8]} 45... cxb4 {[%clk 0:01:20.8]}
46. Kc2 {[%clk 0:00:05.5]} 46... Ka4 {[%clk 0:01:20.8]} 47. Kb2 {[%clk
0:00:04.4]} 47... b3 {[%clk 0:01:18.6]} 48. c5 {[%clk 0:00:04.8]} 48... Kb5
{[%clk 0:01:18.9]} 49. Kxb3 {[%clk 0:00:05.3]} 49... Kxc5 {[%clk 0:01:17.4]} 50.
Kc3 {[%clk 0:00:05.9]} 50... Kd5 {[%clk 0:01:15.2]} 51. Kd3 {[%clk 0:00:06.3]}
51... Kc5 {[%clk 0:01:16.1]} 52. Kc3 {[%clk 0:00:06.1]} 52... Kc6 {[%clk
0:01:17]} 53. Kd4 {[%clk 0:00:05.6]} 53... Kd6 {[%clk 0:01:17.2]} 54. Kc4 {[%clk
0:00:06.2]} 54... Kc6 {[%clk 0:01:18.1]} 55. Kd4 {[%clk 0:00:06.5]} 55... Kd6
{[%clk 0:01:19]} 56. Kc4 {[%clk 0:00:07.1]} 56... Kc6 {[%clk 0:01:19.4]} 57. Kd4
{[%clk 0:00:07.7]} 1/2-1/2

[Event "*** Titled Tuesday Blitz"]
[Site "Chess.com"]
[Date "2020.05.12"]
[Round "1"]
[White "tufferguy"]
[Black "Volodar_Murzin"]
[Result "0-1"]
[WhiteElo "2374"]
[BlackElo "2710"]
[TimeControl "180+1"]
[EndTime "10:07:03 PDT"]
[Termination "Volodar_Murzin won on time"]

1. e4 {[%clk 0:03:00.9]} 1... c6 {[%clk 0:02:59.4]} 2. d4 {[%clk 0:02:58.9]}
2... d5 {[%clk 0:02:59.5]} 3. e5 {[%clk 0:02:58.3]} 3... Bf5 {[%clk 0:02:58.8]}
4. Bd3 {[%clk 0:02:58.4]} 4... Bxd3 {[%clk 0:02:58.2]} 5. Qxd3 {[%clk
0:02:59.3]} 5... e6 {[%clk 0:02:58.6]} 6. Ne2 {[%clk 0:02:59.2]} 6... Qa5+
{[%clk 0:02:55.9]} 7. Nbc3 {[%clk 0:02:56.8]} 7... Qa6 {[%clk 0:02:55.5]} 8. Qh3
{[%clk 0:02:56.2]} 8... Ne7 {[%clk 0:02:53.3]} 9. a4 {[%clk 0:02:39.5]} 9... Nd7
{[%clk 0:02:52.6]} 10. O-O {[%clk 0:02:36.3]} 10... Rc8 {[%clk 0:02:25.3]} 11.
Be3 {[%clk 0:02:19.6]} 11... Qb6 {[%clk 0:01:54.2]} 12. b3 {[%clk 0:01:52.1]}
12... a6 {[%clk 0:01:47.5]} 13. a5 {[%clk 0:01:44.2]} 13... Qc7 {[%clk
0:01:46.6]} 14. b4 {[%clk 0:01:30.2]} 14... Nf5 {[%clk 0:01:28.6]} 15. Rab1
{[%clk 0:01:29.2]} 15... Be7 {[%clk 0:01:18.5]} 16. f4 {[%clk 0:01:18.3]} 16...
h5 {[%clk 0:01:10.1]} 17. Bf2 {[%clk 0:00:59.6]} 17... Rh6 {[%clk 0:01:05]} 18.
Ng3 {[%clk 0:00:55.3]} 18... g6 {[%clk 0:01:03.6]} 19. Nxf5 {[%clk 0:00:54.1]}
19... exf5 {[%clk 0:01:02]} 20. e6 {[%clk 0:00:29.1]} 20... fxe6 {[%clk
0:01:00.8]} 21. Rfe1 {[%clk 0:00:29.1]} 21... Kf7 {[%clk 0:01:00]} 22. Qe3
{[%clk 0:00:20.3]} 22... Qd6 {[%clk 0:00:57.1]} 23. Na4 {[%clk 0:00:20.4]} 23...
Rc7 {[%clk 0:00:26]} 24. Kf1 {[%clk 0:00:15.4]} 24... Nf6 {[%clk 0:00:25.5]} 25.
Nc5 {[%clk 0:00:12.7]} 25... Ne4 {[%clk 0:00:25]} 26. Kg1 {[%clk 0:00:08]} 26...
Rh8 {[%clk 0:00:24.1]} 27. c3 {[%clk 0:00:07]} 27... Re8 {[%clk 0:00:23.4]} 28.
Qf3 {[%clk 0:00:06.4]} 28... Bf6 {[%clk 0:00:22.7]} 29. Qd3 {[%clk 0:00:04.4]}
29... Rce7 {[%clk 0:00:20.8]} 30. h4 {[%clk 0:00:03.8]} 30... Qxf4 {[%clk
0:00:18.9]} 31. g3 {[%clk 0:00:02.8]} 31... Qd6 {[%clk 0:00:18.6]} 0-1